fUSD/lending_fUSD_20250426
["ID","MTS","AMOUNT","RATE_DAILY","PERIOD"]
[359040792,1745669431995,-470.18349059,0.00019515,2]
[359040793,1745669432007,-250.0,0.00019515,2]
[359040794,1745669432019,-280.96014868,0.00019515,2]
[359040833,1745669432769,-250.0,0.00019515,2]
[359040837,1745669437852,-938.38082855,0.00019515,2]
[359040838,1745669437862,-166.68,0.00019563,2]
[359040839,1745669437873,-303.83983638,0.00019628,2]
[359040840,1745669437884,-1200.0,0.00019727,2]
[359040841,1745669437894,-303.83983636,0.00019732,2]
[359040842,1745669437903,-164.438316,0.00019792,2]
[359040843,1745669437913,-13500.77670408,0.00019792,2]
[359040845,1745669437995,-13528.06907692,0.00019792,2]
[359040847,1745669438005,-27028.845781,0.00019793,2]
[359040849,1745669438015,-27028.845781,0.00019795,2]
[359040851,1745669438025,-192.0,0.00019797,2]
[359040853,1745669438035,-27028.845781,0.00019797,2]
[359040855,1745669438044,-300.0,0.00019798,2]
[359040857,1745669438054,-27028.845781,0.00019798,2]
[359040859,1745669438064,-7140.71,0.00019799,2]
[359040861,1745669438073,-150.99,0.00019799,2]
[359040863,1745669438082,-2130.6314552,0.00019799,2]
[359040865,1745669438091,-746.16,0.00019802,2]
[359040867,1745669438101,-529.09,0.00019802,2]
[359040869,1745669438111,-200.0,0.0001982,2]
[359040871,1745669438120,-303.83983636,0.00019836,2]
[359040874,1745669438129,-2000.0,0.0001984,2]
[359040876,1745669438139,-200.0,0.0001985,2]
[359040878,1745669438149,-1376.9186,0.00019885,2]
[359040880,1745669438160,-711.75,0.000199,2]
[359040882,1745669438170,-1151.69,0.000199,2]
[359040884,1745669438179,-161.91,0.000199,2]
[359040886,1745669438189,-150.0,0.000199,2]
[359040888,1745669438199,-455.14,0.000199,2]
[359040890,1745669438208,-150.0,0.000199,2]
[359040892,1745669438218,-1151.69,0.000199,2]
[359040894,1745669438227,-338.25,0.000199,2]
[359040896,1745669438238,-450.48,0.000199,2]
[359040898,1745669438250,-454.99,0.000199,2]
[359040900,1745669438260,-150.0,0.000199,2]
[359040902,1745669438270,-161.91,0.000199,2]
[359040904,1745669438279,-150.0,0.000199,2]
[359040906,1745669438289,-150.0,0.000199,2]
[359040908,1745669438299,-150.0,0.000199,2]
[359040910,1745669438308,-150.0,0.000199,2]
[359040912,1745669438318,-1151.69,0.000199,2]
[359040914,1745669438327,-150.0,0.000199,2]
[359040915,1745669438336,-161.91,0.000199,2]
[359040917,1745669438345,-150.0,0.000199,2]
[359040919,1745669438356,-150.0,0.000199,2]
[359040921,1745669438364,-799.84,0.000199,2]
[359040923,1745669438375,-450.48,0.000199,2]
[359040925,1745669438384,-588.22,0.000199,2]
[359040927,1745669438394,-150.0,0.000199,2]
[359040929,1745669438403,-455.14,0.000199,2]
[359040931,1745669438412,-1151.69,0.000199,2]
[359040933,1745669438421,-161.91,0.000199,2]
[359040935,1745669438430,-150.0,0.000199,2]
[359040937,1745669438439,-799.84,0.000199,2]
[359040939,1745669438449,-351.29,0.000199,2]
[359040941,1745669438458,-686.07058292,0.000199,2]
[359040943,1745669438468,-209.68723846,0.000199,2]
[359040945,1745669438478,-2621.40771724,0.000199,2]
[359040947,1745669438487,-200.0,0.00019934,2]
[359040949,1745669438497,-920.0,0.00019936,2]
[359040951,1745669438506,-796.0,0.00019936,2]
[359040953,1745669438515,-1287.0,0.00019936,2]
[359040955,1745669438524,-548.0,0.00019936,2]
[359040957,1745669438534,-579.0,0.00019936,2]
[359040959,1745669438543,-2063.0,0.00019936,2]
[359040961,1745669438553,-1446.0,0.00019936,2]
[359040963,1745669438562,-911.0,0.00019936,2]
[359040964,1745669438571,-1135.0,0.00019936,2]
[359040966,1745669438580,-2149.0,0.00019936,2]
[359040968,1745669438589,-3991.0,0.00019936,2]
[359040970,1745669438598,-201.859,0.00019936,2]
[359040972,1745669438608,-257.141,0.00019936,2]
[359040974,1745669438619,-6193.0,0.00019936,2]
[359040976,1745669438628,-871.0,0.00019936,2]
[359040978,1745669438638,-877.0,0.00019936,2]
[359040981,1745669438647,-27028.845781,0.0001997,2]
[359040984,1745669438656,-27028.845781,0.00019971,2]
[359040987,1745669438665,-521.52548977,0.00019973,2]
[359040990,1745669438675,-500.0,0.00019973,2]
[359040992,1745669438684,-500.0,0.00019973,2]
[359040994,1745669438695,-1605.111,0.00019973,2]
[359040996,1745669438705,-207.4,0.00019974,2]
[359040997,1745669438715,-1000.0,0.00019984,2]
[359040999,1745669438724,-1000.0,0.00019984,2]
[359041001,1745669438734,-642.44326523,0.00019984,2]
[359041004,1745669438747,-500.0,0.00019985,2]
[359041005,1745669438757,-500.0,0.00019985,2]
[359041007,1745669438766,-597.69308337,0.00019985,2]
[359041009,1745669438777,-400.0,0.00019985,2]
[359041011,1745669438787,-400.0,0.00019985,2]
[359041013,1745669438796,-537.37300832,0.00019985,2]
[359041015,1745669438806,-503.96352801,0.00019985,2]
[359041018,1745669438816,-500.64604961,0.00019985,2]
[359041020,1745669438825,-500.0,0.00019985,2]
[359041021,1745669438835,-400.0,0.00019985,2]
[359041023,1745669438844,-400.0,0.00019985,2]
[359041025,1745669438853,-500.0,0.00019985,2]
[359041027,1745669438862,-400.0,0.00019985,2]
[359041028,1745669438871,-400.0,0.00019985,2]
[359041030,1745669438880,-508.88305216,0.00019985,2]
[359041031,1745669438889,-400.0,0.00019985,2]
[359041032,1745669438899,-400.0,0.00019985,2]
[359041033,1745669438908,-503.20936265,0.00019985,2]
[359041034,1745669438918,-509.13702663,0.00019985,2]
[359041035,1745669438927,-400.0,0.00019985,2]
[359041036,1745669438936,-400.0,0.00019985,2]
[359041037,1745669438946,-400.0,0.00019985,2]
[359041038,1745669438955,-500.0,0.00019985,2]
[359041039,1745669438964,-482.54,0.00019985,2]
[359041040,1745669438974,-486.2,0.00019985,2]
[359041041,1745669438984,-400.0,0.00019985,2]
[359041042,1745669438993,-400.0,0.00019985,2]
[359041043,1745669439003,-905.92,0.00019985,2]
[359041044,1745669439013,-619.6,0.00019985,2]
[359041045,1745669439023,-945.48,0.00019985,2]
[359041046,1745669439032,-400.0,0.00019985,2]
[359041047,1745669439042,-400.0,0.00019985,2]
[359041048,1745669439051,-446.83,0.00019985,2]
[359041049,1745669439060,-698.2,0.00019985,2]
[359041050,1745669439069,-150.0,0.00019985,2]
[359041051,1745669439079,-500.0,0.00019985,2]
[359041052,1745669439089,-1299.14,0.00019985,2]
[359041053,1745669439098,-500.0,0.00019985,2]
[359041054,1745669439108,-1226.68,0.00019985,2]
[359041055,1745669439118,-150.0,0.00019985,2]
[359041056,1745669439128,-500.0,0.00019985,2]
[359041057,1745669439137,-150.0,0.00019985,2]
[359041058,1745669439146,-2859.0,0.00019985,2]
[359041059,1745669439156,-400.0,0.00019985,2]
[359041060,1745669439166,-500.0,0.00019985,2]
[359041061,1745669439176,-500.0,0.00019985,2]
[359041062,1745669439186,-150.0,0.00019985,2]
[359041063,1745669439195,-1380.18,0.00019985,2]
[359041064,1745669439205,-500.0,0.00019985,2]
[359041065,1745669439215,-500.0,0.00019985,2]
[359041066,1745669439225,-150.0,0.00019985,2]
[359041067,1745669439235,-526.25,0.00019985,2]
[359041068,1745669439246,-400.0,0.00019985,2]
[359041069,1745669439255,-925.68,0.00019985,2]
[359041070,1745669439266,-443.87,0.00019985,2]
[359041071,1745669439275,-646.74,0.00019985,2]
[359041072,1745669439284,-1044.24,0.00019985,2]
[359041073,1745669439294,-790.07,0.00019985,2]
[359041074,1745669439304,-985.44,0.00019985,2]
[359041075,1745669439314,-891.878653,0.00019985,2]
[359041076,1745669439323,-400.0,0.00019985,2]
[359041077,1745669439333,-621.23,0.00019985,2]
[359041078,1745669439342,-939.014941,0.00019985,2]
[359041079,1745669439352,-500.0,0.00019985,2]
[359041080,1745669439361,-1201.53,0.00019985,2]
[359041081,1745669439371,-3310.61,0.00019985,2]
[359041082,1745669439380,-166.423983,0.00019985,2]
[359041083,1745669439389,-499.18,0.00019985,2]
[359041084,1745669439399,-586.74,0.00019985,2]
[359041085,1745669439409,-400.0,0.00019985,2]
[359041086,1745669439419,-673.23,0.00019985,2]
[359041087,1745669439429,-501.83,0.00019985,2]
[359041088,1745669439439,-589.82,0.00019985,2]
[359041089,1745669439448,-400.0,0.00019985,2]
[359041090,1745669439457,-500.0,0.00019985,2]
[359041091,1745669439466,-500.0,0.00019985,2]
[359041092,1745669439475,-497.27,0.00019985,2]
[359041093,1745669439485,-522.76,0.00019985,2]
[359041094,1745669439496,-532.65,0.00019985,2]
[359041095,1745669439505,-691.38,0.00019985,2]
[359041096,1745669439514,-3811.36,0.00019985,2]
[359041097,1745669439524,-400.0,0.00019985,2]
[359041098,1745669439533,-548.44,0.00019985,2]
[359041099,1745669439543,-739.43,0.00019985,2]
[359041100,1745669439552,-400.0,0.00019985,2]
[359041101,1745669439563,-400.0,0.00019985,2]
[359041102,1745669439573,-400.0,0.00019985,2]
[359041103,1745669439583,-974.4,0.00019985,2]
[359041104,1745669439593,-400.0,0.00019985,2]
[359041105,1745669439604,-735.59,0.00019985,2]
[359041106,1745669439614,-501.42,0.00019985,2]
[359041107,1745669439624,-857.46,0.00019985,2]
[359041108,1745669439633,-400.0,0.00019985,2]
[359041109,1745669439643,-654.99,0.00019985,2]
[359041110,1745669439653,-400.0,0.00019985,2]
[359041111,1745669439663,-849.08,0.00019985,2]
[359041112,1745669439672,-594.8,0.00019985,2]
[359041113,1745669439681,-825.73,0.00019985,2]
[359041114,1745669439692,-1363.18,0.00019985,2]
[359041115,1745669439705,-400.0,0.00019985,2]
[359041116,1745669439714,-750.88,0.00019985,2]
[359041117,1745669439725,-907.23,0.00019985,2]
[359041118,1745669439735,-512.74,0.00019985,2]
[359041119,1745669439747,-400.0,0.00019985,2]
[359041121,1745669439756,-400.0,0.00019985,2]
[359041123,1745669439766,-589.25,0.00019985,2]
[359041125,1745669439776,-421.19,0.00019985,2]
[359041127,1745669439786,-447.29,0.00019985,2]
[359041129,1745669439796,-681.31,0.00019985,2]
[359041131,1745669439805,-1019.71,0.00019985,2]
[359041133,1745669439815,-447.57,0.00019985,2]
[359041135,1745669439825,-9666.13,0.00019985,2]
[359041137,1745669439835,-500.0,0.00019985,2]
[359041139,1745669439844,-744.08,0.00019985,2]
[359041142,1745669439854,-1150.24,0.00019985,2]
[359041144,1745669439864,-400.0,0.00019985,2]
[359041146,1745669439874,-400.0,0.00019985,2]
[359041147,1745669439883,-601.85,0.00019985,2]
[359041148,1745669439892,-887.48,0.00019985,2]
[359041149,1745669439902,-766.71,0.00019985,2]
[359041150,1745669439912,-400.0,0.00019985,2]
[359041151,1745669439922,-400.0,0.00019985,2]
[359041152,1745669439933,-686.58,0.00019985,2]
[359041153,1745669439942,-851.66,0.00019985,2]
[359041154,1745669439952,-27028.845781,0.00019985,2]
[359041155,1745669439961,-400.0,0.00019985,2]
[359041156,1745669439972,-500.0,0.00019985,2]
[359041157,1745669439982,-788292.57851459,0.00019986,2]
[359041158,1745669440448,-1094.50000025,0.00019986,2]
[359041159,1745669440460,-2420.85131105,0.00019986,2]
[359041160,1745669441241,-8817.92,0.00019986,2]
[359041161,1745669441368,-0.00303464,0.00019986,2]
[359041205,1745669521134,-2564.151127,0.00019792,2]
[359041206,1745669521162,-2699.667957,0.00019792,2]
[359041207,1745669521191,-3378.605723,0.00019792,2]
[359041208,1745669521219,-2564.151127,0.00019793,2]
[359041209,1745669521245,-2699.667957,0.00019793,2]
[359041210,1745669521272,-3378.605723,0.00019793,2]
[359041211,1745669521299,-2564.151127,0.00019795,2]
[359041212,1745669521328,-2699.667957,0.00019795,2]
[359041213,1745669521355,-3378.605723,0.00019795,2]
[359041214,1745669521381,-1078.725579,0.00019797,2]
[359041215,1745669537556,23900.0,0.00019027,2]
[359041216,1745669659081,250.0,0.00017,2]
[359041217,1745669660158,300.0,0.00019,2]
[359041218,1745669704048,150.91,0.00027425,30]
[359041219,1745669704902,1419.2,0.00019,2]
[359041220,1745669737082,1000.0,0.00019009,2]
[359041221,1745669830697,877.19,0.00017107,2]
[359041222,1745669832026,-150.0,0.00019371,2]
[359041223,1745669913932,-250.0,0.00019371,2]
[359041224,1745669915024,-180.56557297,0.00019371,2]
[359041225,1745669966742,-166.68,0.00019371,2]
[359041226,1745670003885,-129.94442703,0.00019371,2]
[359041227,1745670003907,-94.69067158,0.00019466,2]
[359041228,1745670124746,-155.30932842,0.00019466,2]
[359041229,1745670124771,-23.25067158,0.00019513,2]
[359041230,1745670140600,-176.74932842,0.00019513,2]
[359041231,1745670140622,-71.68067158,0.00019534,2]
[359041232,1745670159890,-178.31932842,0.00019534,2]
[359041233,1745670159913,-166.68,0.00019561,2]
[359041234,1745670159935,-277.42639471,0.00019699,2]
[359041235,1745670159957,-500.0,0.00019726,2]
[359041236,1745670159980,-1704.5051641,0.00019799,2]
[359041237,1745670160001,-300.0857,0.00019886,2]
[359041238,1745670160024,-1200.0,0.00019899,2]
[359041239,1745670160046,-300.0,0.00019899,2]
[359041240,1745670160072,-457.38038862,0.000199,2]
[359041241,1745670160094,-1747.60514482,0.000199,2]
[359041242,1745670160117,-9968.2,0.000199,2]
[359041243,1745670160140,-209.68723844,0.000199,2]
[359041244,1745670160162,-392.0,0.00019969,2]
[359041245,1745670160183,-919.48,0.0001997,2]
[359041246,1745670160205,-536.94466659,0.0001997,2]
[359041247,1745670160227,-212.27858785,0.0001997,2]
[359041248,1745670160248,-206.2795176,0.0001997,2]
[359041249,1745670160270,-1284.088,0.0001997,2]
[359041250,1745670160555,-413.47,0.0001997,2]
[359041251,1745670160580,-616.66,0.0001997,2]
[359041252,1745670160602,-533.69,0.0001997,2]
[359041253,1745670160625,-400.0,0.0001997,2]
[359041254,1745670160650,-814.1,0.0001997,2]
[359041255,1745670160675,-872.56,0.0001997,2]
[359041256,1745670160699,-626.84,0.0001997,2]
[359041257,1745670160720,-400.0,0.0001997,2]
[359041258,1745670160742,-837.4,0.0001997,2]
[359041259,1745670160763,-400.0,0.0001997,2]
[359041260,1745670160785,-1316.07,0.0001997,2]
[359041261,1745670160807,-400.0,0.0001997,2]
[359041262,1745670160828,-400.0,0.0001997,2]
[359041263,1745670160850,-978.05,0.0001997,2]
[359041264,1745670160874,-400.0,0.0001997,2]
[359041265,1745670160899,-683.1,0.0001997,2]
[359041266,1745670160925,-1382.43,0.0001997,2]
[359041267,1745670160949,-500.0,0.0001997,2]
[359041268,1745670160972,-445.63,0.0001997,2]
[359041269,1745670160997,-400.0,0.0001997,2]
[359041270,1745670161021,-790.1,0.0001997,2]
[359041271,1745670161044,-944.41,0.0001997,2]
[359041272,1745670161070,-400.0,0.0001997,2]
[359041273,1745670161092,-543.89,0.0001997,2]
[359041274,1745670161115,-588.88,0.00019971,2]
[359041275,1745670161140,-524.85641366,0.00019971,2]
[359041276,1745670161161,-400.0,0.00019971,2]
[359041277,1745670161184,-851.66,0.00019971,2]
[359041278,1745670161207,-410.41,0.00019971,2]
[359041279,1745670161232,-1201.53,0.00019971,2]
[359041280,1745670161254,-499.18,0.00019971,2]
[359041281,1745670161275,-400.0,0.00019971,2]
[359041282,1745670161297,-673.23,0.00019971,2]
[359041283,1745670161318,-400.0,0.00019971,2]
[359041284,1745670161340,-400.0,0.00019971,2]
[359041285,1745670161361,-237.5090472,0.00019971,2]
[359041286,1745670161383,-522.76,0.00019971,2]
[359041287,1745670161406,-400.0,0.00019971,2]
[359041288,1745670161428,-400.0,0.00019971,2]
[359041289,1745670161449,-513.88037635,0.00019971,2]
[359041290,1745670161471,-517.77229489,0.00019971,2]
[359041291,1745670161495,-400.0,0.00019971,2]
[359041292,1745670161517,-536.65850559,0.00019971,2]
[359041293,1745670161540,-532.03936521,0.00019971,2]
[359041294,1745670161563,-739.43,0.00019971,2]
[359041295,1745670161586,-497.27,0.00019971,2]
[359041296,1745670161608,-529.40516209,0.00019971,2]
[359041297,1745670161631,-400.0,0.00019971,2]
[359041298,1745670161656,-581.92,0.00019971,2]
[359041299,1745670161677,-400.0,0.00019971,2]
[359041300,1745670161700,-500.0,0.00019971,2]
[359041301,1745670161721,-400.0,0.00019971,2]
[359041302,1745670161746,-400.0,0.00019971,2]
[359041303,1745670161771,-265.07858345,0.00019971,2]
[359041304,1745670161797,-400.0,0.00019971,2]
[359041305,1745670161820,-502.20725441,0.00019971,2]
[359041306,1745670161844,-500.0,0.00019971,2]
[359041307,1745670161868,-691.38,0.00019971,2]
[359041308,1745670161892,-500.83206328,0.00019971,2]
[359041309,1745670161915,-544.12091407,0.00019971,2]
[359041310,1745670161942,-782.27,0.00019971,2]
[359041311,1745670161965,-500.0,0.00019971,2]
[359041312,1745670161990,-500.0,0.00019971,2]
[359041313,1745670162013,-501.17231651,0.00019971,2]
[359041314,1745670162035,-215.039,0.00019971,2]
[359041315,1745670162063,-1098.17,0.00019971,2]
[359041316,1745670162086,-503.66766536,0.00019971,2]
[359041317,1745670162113,-548.44,0.00019971,2]
[359041318,1745670162136,-400.0,0.00019971,2]
[359041319,1745670162159,-400.0,0.00019971,2]
[359041320,1745670162181,-974.4,0.00019971,2]
[359041321,1745670162202,-400.0,0.00019971,2]
[359041322,1745670162225,-500.0,0.00019971,2]
[359041323,1745670162249,-554.08,0.00019971,2]
[359041324,1745670162271,-400.0,0.00019971,2]
[359041325,1745670162294,-218.13582907,0.00019971,2]
[359041326,1745670162318,-975.6,0.00019971,2]
[359041327,1745670162341,-500.0,0.00019971,2]
[359041328,1745670162364,-654.99,0.00019971,2]
[359041329,1745670162386,-400.0,0.00019971,2]
[359041330,1745670162410,-400.0,0.00019971,2]
[359041331,1745670162432,-500.0,0.00019971,2]
[359041332,1745670162455,-400.0,0.00019971,2]
[359041333,1745670162477,-577.47,0.00019971,2]
[359041334,1745670162500,-400.0,0.00019971,2]
[359041335,1745670162522,-735.59,0.00019971,2]
[359041336,1745670162544,-1094.62,0.00019971,2]
[359041337,1745670162566,-403.98,0.00019971,2]
[359041338,1745670162588,-500.0,0.00019971,2]
[359041339,1745670162610,-594.8,0.00019971,2]
[359041340,1745670162632,-1363.18,0.00019971,2]
[359041341,1745670162655,-1771.13,0.00019971,2]
[359041342,1745670162678,-857.46,0.00019971,2]
[359041343,1745670162700,-400.0,0.00019971,2]
[359041344,1745670162722,-750.88,0.00019971,2]
[359041345,1745670162744,-699.99,0.00019971,2]
[359041346,1745670162767,-400.0,0.00019971,2]
[359041347,1745670162789,-400.0,0.00019971,2]
[359041348,1745670162812,-512.74,0.00019971,2]
[359041349,1745670162834,-560.98,0.00019971,2]
[359041350,1745670162856,-400.0,0.00019971,2]
[359041351,1745670162878,-825.73,0.00019971,2]
[359041352,1745670162903,-530.66335049,0.00019971,2]
[359041353,1745670162928,-752.42,0.00019971,2]
[359041354,1745670162949,-400.0,0.00019971,2]
[359041355,1745670162970,-503.48671736,0.00019971,2]
[359041356,1745670162992,-421.19,0.00019971,2]
[359041357,1745670163014,-400.0,0.00019971,2]
[359041358,1745670163037,-907.23,0.00019971,2]
[359041359,1745670163060,-447.29,0.00019971,2]
[359041360,1745670163083,-783.16,0.00019971,2]
[359041361,1745670163105,-1019.71,0.00019971,2]
[359041362,1745670163127,-500.0,0.00019971,2]
[359041363,1745670163152,-1150.24,0.00019971,2]
[359041364,1745670163173,-822.28,0.00019971,2]
[359041365,1745670163195,-890.55,0.00019971,2]
[359041366,1745670163216,-619.86,0.00019971,2]
[359041367,1745670163240,-525.27,0.00019971,2]
[359041368,1745670163263,-589.25,0.00019971,2]
[359041369,1745670163286,-500.0,0.00019971,2]
[359041370,1745670163308,-400.0,0.00019971,2]
[359041371,1745670163330,-308.83261399,0.00019971,2]
[359041372,1745670163351,-640.48,0.00019971,2]
[359041373,1745670163375,-400.0,0.00019971,2]
[359041374,1745670163398,-170.81516393,0.00019971,2]
[359041375,1745670163420,-182.16364391,0.00019971,2]
[359041376,1745670163443,-500.0,0.00019971,2]
[359041377,1745670163466,-282.41869053,0.00019971,2]
[359041378,1745670163488,-500.0,0.00019971,2]
[359041379,1745670163512,-500.0,0.00019971,2]
[359041380,1745670163535,-500.0,0.00019971,2]
[359041381,1745670163556,-802.98,0.00019971,2]
[359041382,1745670163579,-400.0,0.00019971,2]
[359041383,1745670163601,-703.876192,0.00019971,2]
[359041384,1745670163624,-9666.13,0.00019971,2]
[359041385,1745670163646,-400.0,0.00019971,2]
[359041386,1745670163672,-555.79,0.00019971,2]
[359041387,1745670163696,-500.0,0.00019971,2]
[359041388,1745670163725,-18806.1289001,0.00019972,2]
[359041389,1745670163757,-207759.5280049,0.00019972,2]
[359041390,1745670163779,-500.0,0.00019973,2]
[359041391,1745670163801,-502.0147822,0.00019973,2]
[359041392,1745670163822,-152.47103889,0.00019973,2]
[359041393,1745670163843,-500.0,0.00019973,2]
[359041394,1745670163864,-548.82592614,0.00019973,2]
[359041395,1745670163886,-500.0,0.00019973,2]
[359041396,1745670163911,-207.4,0.00019974,2]
[359041397,1745670163933,-2000.0,0.00019984,2]
[359041398,1745670163957,-552.61,0.00019984,2]
[359041399,1745670163981,-400.0,0.00019984,2]
[359041400,1745670164006,-508.14,0.00019984,2]
[359041401,1745670164242,-400.0,0.00019984,2]
[359041402,1745670164319,-400.0,0.00019984,2]
[359041403,1745670164341,-400.0,0.00019984,2]
[359041404,1745670164362,-400.0,0.00019984,2]
[359041405,1745670164384,-400.0,0.00019984,2]
[359041406,1745670164407,-500.0,0.00019984,2]
[359041407,1745670164429,-400.0,0.00019984,2]
[359041408,1745670164450,-400.0,0.00019984,2]
[359041409,1745670164474,-400.0,0.00019984,2]
[359041410,1745670164497,-511.99031012,0.00019984,2]
[359041411,1745670164525,-400.0,0.00019984,2]
[359041412,1745670164562,-500.0,0.00019984,2]
[359041413,1745670164584,-400.0,0.00019984,2]
[359041414,1745670164606,-644.18,0.00019984,2]
[359041415,1745670164629,-400.0,0.00019984,2]
[359041416,1745670164651,-400.0,0.00019984,2]
[359041417,1745670164674,-400.0,0.00019984,2]
[359041418,1745670164696,-400.0,0.00019984,2]
[359041419,1745670164717,-400.0,0.00019984,2]
[359041420,1745670164739,-400.0,0.00019984,2]
[359041421,1745670164760,-400.0,0.00019984,2]
[359041422,1745670164782,-500.0,0.00019984,2]
[359041423,1745670164804,-505.87036558,0.00019984,2]
[359041424,1745670164830,-400.0,0.00019984,2]
[359041425,1745670164853,-400.0,0.00019984,2]
[359041426,1745670164875,-194.12937375,0.00019984,2]
[359041427,1745670164897,-400.0,0.00019984,2]
[359041428,1745670164920,-549.72608562,0.00019984,2]
[359041429,1745670164942,-400.0,0.00019984,2]
[359041430,1745670164964,-439.48,0.00019984,2]
[359041431,1745670164986,-400.0,0.00019984,2]
[359041432,1745670165009,-659.71,0.00019984,2]
[359041433,1745670165032,-400.0,0.00019984,2]
[359041434,1745670165056,-400.0,0.00019984,2]
[359041435,1745670165082,-400.0,0.00019984,2]
[359041436,1745670165108,-500.0,0.00019984,2]
[359041437,1745670165134,-725.43,0.00019984,2]
[359041438,1745670165159,-344.21204829,0.00019984,2]
[359041439,1745670165184,-400.0,0.00019984,2]
[359041440,1745670165206,-362.35328234,0.00019984,2]
[359041441,1745670165231,-400.0,0.00019984,2]
[359041442,1745670165254,-500.0,0.00019984,2]
[359041443,1745670165276,-400.0,0.00019984,2]
[359041444,1745670165299,-400.0,0.00019984,2]
[359041445,1745670165321,-286.41314099,0.00019984,2]
[359041446,1745670165344,-400.0,0.00019984,2]
[359041447,1745670165366,-400.0,0.00019984,2]
[359041448,1745670165388,-400.0,0.00019984,2]
[359041449,1745670165412,-400.0,0.00019984,2]
[359041450,1745670165434,-424.92,0.00019984,2]
[359041451,1745670165456,-518.69340176,0.00019984,2]
[359041452,1745670165477,-400.0,0.00019984,2]
[359041453,1745670165499,-400.0,0.00019984,2]
[359041454,1745670165521,-400.0,0.00019984,2]
[359041455,1745670165544,-507.19374381,0.00019984,2]
[359041456,1745670165565,-507.13232851,0.00019984,2]
[359041457,1745670165586,-400.0,0.00019984,2]
[359041458,1745670165608,-400.0,0.00019984,2]
[359041459,1745670165631,-536.57836525,0.00019984,2]
[359041460,1745670165656,-400.0,0.00019984,2]
[359041461,1745670165678,-400.0,0.00019984,2]
[359041462,1745670165699,-400.0,0.00019984,2]
[359041463,1745670165725,-400.0,0.00019984,2]
[359041464,1745670165747,-500.0,0.00019984,2]
[359041465,1745670165768,-500.0,0.00019984,2]
[359041466,1745670165790,-250.13,0.00019984,2]
[359041467,1745670165811,-400.0,0.00019984,2]
[359041468,1745670165834,-400.0,0.00019984,2]
[359041469,1745670165857,-534.30097685,0.00019984,2]
[359041470,1745670165879,-500.0,0.00019984,2]
[359041471,1745670165902,-400.0,0.00019984,2]
[359041472,1745670165924,-500.0,0.00019984,2]
[359041473,1745670165946,-500.0,0.00019984,2]
[359041474,1745670165968,-400.0,0.00019984,2]
[359041475,1745670165991,-400.0,0.00019984,2]
[359041476,1745670166014,-500.0,0.00019984,2]
[359041477,1745670166037,-500.0,0.00019984,2]
[359041478,1745670166063,-400.0,0.00019984,2]
[359041479,1745670166086,-400.0,0.00019984,2]
[359041480,1745670166111,-679.52,0.00019984,2]
[359041481,1745670166137,-400.0,0.00019984,2]
[359041482,1745670166164,-500.0,0.00019984,2]
[359041483,1745670166185,-400.0,0.00019984,2]